Cogmind - Beta 15 @@@ ROGUE MODE // 2025.09.02 @ 21:32:33 Player: Gumbus Result: Destroyed by G-47 Trooper with Particle Gun Performance ------------- Evolutions (2) 1000 Regions Visited (3) 600 Robots Destroyed (56) 280 Value Destroyed (1471) 1471 Prototype IDs (2) 40 Alien Tech Used (0) 0 Bonus (0) 0 TOTAL SCORE: 3391 Bonus ------- None Cogmind --------- Core Integrity 0/550 Matter 295/300 Energy 100/100 System Corruption 3% Temperature Cool (18) Movement Core (100) Ox1 Location -8/Materials Parts ------- > --- POWER (2) -------- (None) > --- PROPULSION (3) --- (None) > --- UTILITY (4) ------ Structural Scanner Advanced Targeting Computer Improved Melee Analysis Suite Improved Melee Analysis Suite > --- WEAPON (2) ------- Heavy Mace > --- INVENTORY (5) ---- (None) Peak State ------------ > --- POWER ------------ Light Ion Engine Improved Ion Engine > --- PROPULSION ------- Improved Treads Wheel > --- UTILITY ---------- Cryofiber Web Structural Scanner Advanced Targeting Computer Advanced Targeting Computer > --- WEAPON ----------- Gatling Laser Gatling Laser > --- INVENTORY -------- Compact Wheel Improved Melee Analysis Suite Improved Melee Analysis Suite Hacking Suite Heavy Mace [Rating: 25] Favorites ----------- Power Improved Ion Engine Engine Improved Ion Engine Power Core Light Nuclear Core Propulsion Compact Wheel Treads Improved Treads Leg Aluminum Leg Wheel Compact Wheel Hover Unit Airjet Flight Unit Flight Unit Utility Heat Sink Device Heat Sink Storage Small Storage Unit Processor Advanced Targeting Computer Hackware Hacking Suite Protection Hardened Light Armor Plating Weapon Particle Cannon Energy Gun Improved Medium Laser Energy Cannon Particle Cannon Ballistic Gun Shotgun Impact Weapon Heavy Mace Build | -11 -10 -9 -8 ------- Run | Yrd Mat Mat Mat Slots Evolved 4 | . . 2 2 Power 1 | . . 1 . Propulsion 1 | . . . 1 Utility 2 | . . 1 1 Weapon . | . . . . Parts Attached 63 | 6 7 26 24 Power 14 | 1 1 4 8 Engine 12 | 1 1 4 6 Core 2 | . . . 2 Reactor . | . . . . Propulsion 17 | 2 2 6 7 Treads 1 | . . . 1 Leg 5 | . 2 3 . Wheel 7 | 2 . 2 3 Hover 1 | . . . 1 Flight 3 | . . 1 2 Utility 17 | 1 2 9 5 Device 5 | . 1 3 1 Storage 1 | 1 . . . Processor 6 | . 1 3 2 Hackware 1 | . . . 1 Protection 4 | . . 3 1 Artifact . | . . . . Weapon 15 | 2 2 7 4 Energy Gun 6 | 1 . 2 3 Energy Cannon 4 | . 2 2 . Ballistic Gun 4 | 1 . 3 . Ballistic Cannon . | . . . . Launcher . | . . . . Special Weapon . | . . . . Impact Weapon 1 | . . . 1 Slashing Weapon . | . . . . Piercing Weapon . | . . . . Special Melee Weapon . | . . . . Unidentified Prototypes 2 | . . 2 . Parts Lost 18 | . 2 2 14 Power 6 | . . . 6 Propulsion 5 | . 1 1 3 Utility 4 | . . 1 3 Weapon 3 | . 1 . 2 Highest Loss Streak 8 | . 2 1 8 To Critical Strikes . | . . . . Average Backups 3 | 1 3 3 3 Power . | . . . . Propulsion . | . 1 . . Utility 1 | . . 1 1 Weapon . | . 1 1 . Tool/Special . | . . . . Unused Backups 4 | . . 3 1 Power . | . . . . Propulsion . | . . . . Utility 2 | . . 1 1 Weapon 2 | . . 2 . Tool/Special . | . . . . Average Slot Usage (%) 88 | . 96 95 76 Engine 16 | . 14 20 12 Core 1 | . . . 2 Treads 1 | . . . 4 Leg 7 | . 8 12 . Wheel 9 | . 18 8 6 Device 14 | . 4 19 13 Storage 2 | . 13 1 . Processor 8 | . 8 . 18 Protection 5 | . . 9 1 Energy Gun 6 | . 5 6 6 Energy Cannon 8 | . 18 12 . Ballistic Gun 5 | . 3 3 8 Peak Build Rating 25 | 6 9 21 25 Average Rating 15 | 3 8 15 19 On Entrance 8 | . 6 9 18 Naked Turns . | . . . . Heaviest Build 29 | 14 19 29 28 Greatest Support 32 | 20 20 32 32 Greatest Overweight (x) 8 | . 1 8 5 Average Overweight (x) . | . . . . Largest Inventory Capacity 8 | 8 8 8 5 Average Capacity 5 | 6 7 5 5 Most Carried 6 | 4 6 5 5 Average Carried 3 | 1 3 3 2 Final Capacity 8 | 8 8 5 5 Final Carried 5 | 3 . 5 . Class Distribution -------------------- 58% | Mutant 41% | Scavenger-Mutant Dominant Class ---------------- Mutant | -10/Materials Mutant | -9/Materials Scavenger-Mutant | -8/Materials Resources | -11 -10 -9 -8 ----------- Run | Yrd Mat Mat Mat Matter Collected 1258 | 222 181 349 506 Remotely . | . . . . Salvage Created 1910 | . 150 864 896 Parts 120 | . 12 53 55 Haulers Intercepted . | . . . . Recyclers Shooed . | . . . . Parts Field Recycled . | . . . . Retrieved Matter . | . . . . Parts Self-Destructed . | . . . . Prevented . | . . . . Kills | -11 -10 -9 -8 ------- Run | Yrd Mat Mat Mat Combat Hostiles Destroyed 42 | . 5 16 21 Melee 1 | . . . 1 Guns 25 | . . 7 18 Cannons 14 | . 5 9 . Classes Destroyed 11 | . 3 3 5 Worker 1 | . . . 1 Builder 3 | . . 1 2 Tunneler 1 | . . . 1 Recycler 4 | . . 3 1 Mechanic 1 | . . . 1 Watcher 4 | . 1 1 2 Swarmer 16 | . 3 5 8 Grunt 17 | . 2 7 8 Duelist 1 | . . . 1 Sentry 6 | . . 4 2 Specialist 2 | . . . 2 Best Kill Streak 7 | . 2 5 7 Combat Bots Only 7 | . 2 3 7 Max Kills in Single Turn 2 | . 2 1 2 Gunslinging 1 | . . . 1 Exploded . | . . . . Melee 1 | . . . 1 Uniques/NPCs Destroyed . | . . . . Combat | -11 -10 -9 -8 -------- Run | Yrd Mat Mat Mat Hostile Shots Fired 325 | . 49 138 138 Missed 85 | . 9 38 38 Hits 240 | . 40 100 100 Melee 4 | . . . 4 Projectile 236 | . 40 100 96 Critical Strikes 6 | . 1 . 5 Damage Taken 3230 | . 438 1000 1792 Core 840 | . 90 189 561 Absorbed by Shields . | . . . . Core Remaining (%) 72 | 100 64 52 . Volleys Fired 126 | . 26 53 47 Largest 2 | . 2 2 2 Hottest 160 | . 136 136 160 Shots Fired 227 | . 44 96 87 Gun 150 | . 21 42 87 Cannon 77 | . 23 54 . Launcher . | . . . . Special . | . . . . Kinetic 80 | . 11 12 57 Thermal 137 | . 23 84 30 Explosive . | . . . . Electromagnetic 10 | . 10 . . Robot Hit Streak 17 | . 4 6 17 Robot Miss Streak 7 | . 7 4 3 Penetration Max . | . . . . Secondary Targets 3 | . . 1 2 Max Gunslinging Chain 1 | . . 1 1 Shots Hit Robots 155 | . 20 53 82 Core Hits 84 | . 7 22 55 Critical Kills 1 | . . . 1 Critical Parts Destroyed 3 | . 1 . 2 Critical Strikes 5 | . 1 1 3 Burn 1 | . . 1 . Destroy 2 | . 1 . 1 Smash 2 | . . . 2 Melee Attacks 9 | . . . 9 Impact 9 | . . . 9 Slashing . | . . . . Piercing . | . . . . Sneak Attacks 2 | . . . 2 Combat Hostiles . | . . . . Follow-up Attacks . | . . . . Damage Inflicted 3164 | . 320 1011 1833 Guns 1854 | . 114 408 1332 Cannons 800 | . 206 594 . Explosions . | . . . . Melee 498 | . . . 498 Ramming 12 | . . 9 3 Kinetic 1019 | . 80 103 836 Thermal 1601 | . 206 899 496 Explosive . | . . . . Electromagnetic 34 | . 34 . . Impact 498 | . . . 498 Slashing . | . . . . Piercing . | . . . . Highest Corruption 3 | . . . 3 Average Corruption 2 | . . . 2 Corruption Purged . | . . . . Corruption Blocked . | . . . . Effects 5 | . . . 5 Matter Fused 3 | . . . 3 Data Loss (minor) 2 | . . . 2 Overload Shots . | . . . . Overflow Damage 109 | . 10 12 87 Projectiles 22 | . 10 12 . Explosions . | . . . . Melee 87 | . . . 87 Knockbacks 2 | . . . 2 Impact 2 | . . . 2 Kinetic . | . . . . Secondary . | . . . . Self-Inflicted Damage . | . . . . Shots . | . . . . Rammed 1 | . . . 1 Targets Rammed 5 | . . 4 1 Kicked 4 | . . 4 . Crushed . | . . . . Highest Temperature 354 | . 337 354 205 Average Temperature 103 | . 176 76 53 Received Heat Transfer 1074 | . 195 321 558 Effects 2 | . . 2 . Energy Bleed 1 | . . 1 . Interference 1 | . . 1 . Siege Activations . | . . . . Martial Activations . | . . . . Shielding Activations . | . . . . Robots Disrupted . | . . . . Combat Hostiles . | . . . . Robots Corrupted 2 | . . . 2 Combat Hostiles 2 | . . . 2 Parts Fried 7 | . 1 . 6 Impact Corruptions 4 | . . . 4 Robots Melted . | . . . . Combat Hostiles . | . . . . Parts Melted 8 | . 2 4 2 Heat Transferred 3318 | . 370 1813 1135 Parts Sabotaged . | . . . . Parts Stolen . | . . . . Parts Stripped . | . . . . Power Chain Reactions . | . . . . Alert | -11 -10 -9 -8 ------- Run | Yrd Mat Mat Mat Maximum Alert Level 1 | . . 1 1 Low Security (%) 72 | 100 100 87 42 Level 1 27 | . . 12 57 Level 2 . | . . . . Level 3 . | . . . . Level 4 . | . . . . Level 5 . | . . . . High Security . | . . . . Max Security . | . . . . Peak Influence 280 | . 96 237 280 Initial 81 | . . 17 81 Average 100 | . 40 66 172 Influence Increases 1258 | . 173 496 589 Destroy 0b10 Robot/C 840 | . 100 320 420 Destroy 0b10 Robot/NC 70 | . 5 25 40 Destroy Leader 168 | . 22 62 84 Successful Hack 12 | . . 12 . Disable Machine 30 | . 15 15 . Destroy Structure 3 | . 1 2 . Lose Combat Pursuer 135 | . 30 60 45 Influence Decreases 1199 | . 130 344 725 Entered New Map 140 | . . 26 114 Time Decay 769 | . 110 298 361 Lost Part 140 | . 20 20 100 Purge Threat 150 | . . . 150 Squads Dispatched 4 | . . . 4 Investigation 2 | . . . 2 Extermination . | . . . . Reinforcement 2 | . . . 2 Assault . | . . . . Garrison . | . . . . Intercept . | . . . . Searches Triggered . | . . . . Construction Impeded . | . . . . Haulers Reinforced . | . . . . Active Scanning Responses . | . . . . Cargo Convoy Interrupts . | . . . . Stealth | -11 -10 -9 -8 --------- Run | Yrd Mat Mat Mat Distress Signals 7 | . 1 4 2 Communications Jammed . | . . . . Distress Signals . | . . . . Times Spotted 69 | . 10 27 32 Peak Tracking Total 8 | . 4 8 8 Tactical Retreats 7 | . 1 3 3 Traps | -11 -10 -9 -8 ------- Run | Yrd Mat Mat Mat Traps Triggered 2 | . . . 2 Indirectly . | . . . . Trap Hack Attempts . | . . . . Triggered . | . . . . Disarmed . | . . . . Reprogrammed . | . . . . Reused . | . . . . Traps Extracted . | . . . . Installed . | . . . . Triggered . | . . . . Machines | -11 -10 -9 -8 ---------- Run | Yrd Mat Mat Mat Machines Disabled 2 | . 1 1 . Max in Single Turn 1 | . 1 1 . Machines Repaired . | . . . . Machines Dismantled . | . . . . Machines Sabotaged . | . . . . Overloaded Fab Kills . | . . . . Hacking | -11 -10 -9 -8 --------- Run | Yrd Mat Mat Mat Machines Accessed 6 | . . 2 4 Terminals 2 | . . . 2 Fabricators . | . . . . Repair Stations . | . . . . Recycling Units 2 | . . 1 1 Scanalyzers 2 | . . 1 1 Garrison Access . | . . . . Total Hacks 18 | . . 7 11 Successful 14 | . . 5 9 Failed 4 | . . 2 2 Catastrophic . | . . . . Database Lockouts . | . . . . Manual . | . . . . Terminals 4 | . . . 4 Fabricators . | . . . . Repair Stations . | . . . . Recycling Units 10 | . . 5 5 Scanalyzers 4 | . . 2 2 Garrison Access . | . . . . Terminal Hacks 2 | . . . 2 Alert Level 1 | . . . 1 Unreport Threat 1 | . . . 1 Fabricator Hacks . | . . . . Repair Station Hacks . | . . . . Recycling Unit Hacks 9 | . . 4 5 Recycle Component 2 | . . 1 1 Process 4 | . . 2 2 Report Inventory 2 | . . 1 1 Retrieve Matter 1 | . . . 1 Scanalyzer 3 | . . 1 2 Insert Component 2 | . . 1 1 Analyze 1 | . . . 1 Garrison Access Hacks . | . . . . Unauthorized Hacks . | . . . . Terminals . | . . . . Fabricators . | . . . . Repair Stations . | . . . . Recycling Units . | . . . . Scanalyzers . | . . . . Garrison Access . | . . . . Data Cores Recovered . | . . . . Used . | . . . . Hacking Detections 3 | . . . 3 Full Trace Events 2 | . . . 2 Feedback Events . | . . . . Feedback Blocked . | . . . . Robot Schematics Acquired . | . . . . Robots Built . | . . . . Authchips . | . . . . Time . | . . . . Total Robot Build Rating . | . . . . Part Schematics Acquired 1 | . . . 1 Parts Built . | . . . . Authchips . | . . . . Time . | . . . . Total Part Build Rating . | . . . . Parts Repaired . | . . . . Time . | . . . . Parts Recycled 2 | . . 1 1 Recycled Matter 288 | . . 46 242 Retrieved Matter 373 | . . . 373 Retrieved Components . | . . . . Parts Scanalyzed 2 | . . 1 1 Part Schematics Acquired 1 | . . . 1 Parts Damaged 1 | . . 1 . Bothacking | -11 -10 -9 -8 ------------ Run | Yrd Mat Mat Mat Used RIF Installer . | . . . . Robots Hacked . | . . . . Non-combat . | . . . . Combat . | . . . . Robot Hacks Applied . | . . . . Relay Couplers Released . | . . . . Fabnet Peak Effective % . | . . . . Robots Rewired . | . . . . Allies Hacked . | . . . . Hacks Repelled . | . . . . Allies | -11 -10 -9 -8 -------- Run | Yrd Mat Mat Mat Total Allies . | . . . . Largest Group . | . . . . Highest-Rated Group . | . . . . Highest-Rated Ally . | . . . . Total Orders . | . . . . Ally Attacks . | . . . . Total Damage . | . . . . Kills . | . . . . Allies Corrupted . | . . . . Allies Melted . | . . . . Intel | -11 -10 -9 -8 ------- Run | Yrd Mat Mat Mat Active Infowar (turns) 912 | . . 55 857 Optics 6 | . . 6 . Structural 906 | . . 49 857 Robot Analysis Total . | . . . . Derelict Logs Recovered . | . . . . Drone Launches . | . . . . Drone Recoveries . | . . . . Exploration | -11 -10 -9 -8 ------------- Run | Yrd Mat Mat Mat Turns Passed 2294 | 76 320 1041 857 Spaces Moved 1344 | 62 227 601 454 Core 19 | 3 . 2 14 Treads 218 | . . . 218 Legs 340 | . 76 264 . Wheels 767 | 59 151 335 222 Hover . | . . . . Flight . | . . . . Fastest Speed 50 | 50 80 90 80 Average Speed 121 | 78 93 130 128 Slowest Speed 450 | 80 120 450 300 Overloaded Moves . | . . . . Propulsion Burnouts . | . . . . Robots Hopped . | . . . . Potential Cave-ins . | . . . . Cave-ins Triggered . | . . . . Exploration Rate (%) 30 | 4 36 47 36 Regions Visited 3 Branch Regions . Pre-discovered Areas . | . . . . Known Exits Taken . | . . . . Unknown Exits Taken 3 | 1 1 1 . Scrap Searched . | . . . . Spaces Dug . | . . . . Terrain Destroyed . | . . . . Melee . | . . . . Projectile . | . . . . AOE . | . . . . Terrain Rammed . | . . . . Walls Destroyed . | . . . . Machines Disabled . | . . . . Actions | -11 -10 -9 -8 --------- Run | Yrd Mat Mat Mat Total 1764 | 89 290 761 624 Wait 76 | 13 16 4 43 Move 1341 | 61 226 600 454 Hop . | . . . . Pick Up 67 | 9 4 33 21 Fast Attach 9 | . 1 7 1 Attach 46 | 6 6 14 20 Detach 3 | . 1 . 2 Swap 30 | . 5 15 10 Drop 52 | . 5 31 16 Fire 126 | . 26 53 47 Melee 9 | . . . 9 Ram . | . . . . Kick 4 | . . 4 . Crush 1 | . . . 1 Escape Stasis . | . . . . Rewire . | . . . . Trap . | . . . . Miscellaneous . | . . . . Route ------- -11/Scrapyard -10/Materials (discovered 2 exits: *Mat / [*Min]) -9/Materials (discovered 3 exits: *Mat / [*Min] / [*Sto]) -8/Materials History --------- Turn | Location | Event 53 | -11/Scrapyard | Discovered new exit (range 14) 77 | -11/Scrapyard | Entered Materials 100 | -10/Materials | Discovered new exit (range 13) 321 | -10/Materials | Build established: Mutant 346 | -10/Materials | Discovered new exit (range 8) 397 | -10/Materials | Entered another Materials area 397 | -9/Materials | Evolved 2 slots: Power x1, Utility x1 397 | -9/Materials | Discovered new exit (range 8) 1030 | -9/Materials | Discovered new exit (range 15) 1311 | -9/Materials | Build established: Scavenger-Mutant 1403 | -9/Materials | Discovered new exit (range 8) 1438 | -9/Materials | Entered another Materials area 1438 | -8/Materials | Evolved 2 slots: Propulsion x1, Utility x1 1632 | -8/Materials | Destroyed 7 combat bots 2231 | -8/Materials | Core integrity fell below 50% 2268 | -8/Materials | Lost 8 parts (2p2n2u2w) 2283 | -8/Materials | Core integrity fell below 20% 2295 | -8/Materials | Destroyed by G-47 Trooper with Particle Gun Last Messages --------------- Destroyed Armor Integrity Analyzer. X-62 Marksman system corrupted by crushing effect. K-01 Serf collects debris. Wheel destroyed. Acquired Imp. Deuterium Engine. K-01 Serf collects debris. Critical hit (Burn: +37). X-62 Marksman suffers critical hit (Smash). Destroyed Imp. Cooling System. X-62 Marksman system corrupted by crushing effect. X-62 Marksman knocked back. X-62 Marksman system terminally corrupted. Core Analyzer fried. Adv. Visual Processing Unit fried. Imp. Carbon-fiber Leg fried. K-01 Serf collects debris. K-01 Serf destroyed. Imp. Deuterium Engine destroyed. Map ----- +----------------------------------------------------+ | ???????????????????????????????## #### "" | | ???????????????????????????????#####+############# | | ??????????????????????????????? | | ??????????????????????????????? | | ???????????????????????????????? | | ??????????????????????????????????##+###"" """ | | ?????????????????????????????????? #"Y """ | | ?????????????????????????????????????? #"" % """ | | ?????????????????????????????????????? # | | ?????????????????????????????????????? # | | ?????????????????????????????????????? # ### | | ?????????????????????????????????????? # ### | | ??????????????????????????????????????### ##? | | ??????????????????????????????????????### ##? | | ???????????????????????????????????###### ### | | ???????????????????????????????????###### ### | | ???????????????????????????????????## | | ???????????????????????????????????## | | ???????????????????????????????????## | | ???????????????????????????????????## #### | | ???????????????????????????????????## #### | | ?????????????????????################ #### [[[ ! | | ?????????????????????################ #### [[[ ! | | ?????????????????????## ^^ %% ########## | | ?????????????????????## % ^ ########## | | ?????????????????????## @ ########## | | ?????????????????????## %=############### """ """ | | ?????????????????????## % # ### """ """ | | ?????????????????????## !%# """ ### """ "" | | ?????????????????????## !# """"" ### | | ?????????????????????## #! """"" + + %! | | ?????????????????????## # """"" ### " " | | ?????????????????????## # """ !### "T" | | ?????????????????????## # ### """ | | ????????????????? ##### #######+###########+#### | | ?????????????? #####ggg#### !%= | | ??????????????? """ ####*!%! = ?? | | ?????????????? "T !%!%%% % H ? | | ??????????? / ###################### ? | | ???????????## ###################### | | ???????????##! """"" ?????????????#####??## ### | | ???????????## """"" ?????????????????????## ### | | ???????????## ?""""" ?????????????????????# #? | | ????????????????? ?????????????????????? ?? | | ??????????????????? ?????????????????????? ?? | | ?????????????????? ?????????????????????? ]?? | | ?????????????????????????????????????????## #? | | ?????????????????????????????????????????####+###? | | ????????????????????????????????????????? ? | | ?????????????????????????????????????????????????? | +----------------------------------------------------+ Best States ------------- Heat Dissipation 48 Energy Generation 21 Energy Capacity 430 Matter Stores 300 Matter Capacity 300 Sight Range 18 Terrain Scan Density 10 Base Temperature (-) 100 Armor Coverage 225 Evasion (%) 55 Targeting Accuracy 16 Melee Accuracy 12 Recoil Reduction 1 Item Schematics ----------------- Shotgun | -8/Materials | Scanalyzed Robot Schematics ------------------ None Fabricated ------------ Nothing Repaired ---------- Nothing Alien Tech Used ----------------- None Achievements -------------- Everything Is Under Control One Hack Too Far Challenges ------------ None Game ------ Seed GaussSubatomicBlaster Manual? 0 Play Time 00:46:24 Cumulative 2.5 hours Start 2025.09.02 @ 20:04:41 End 2025.09.02 @ 21:32:33 Sessions 3 Manual Loads 0 Difficulty Rogue Special Mode None Game No. 6 Rogue 6 Adventurer 0 Explorer 0 Win Type - Total 0 Types 0/0/0/0/0/0/0/0/0/0 Lore% 0 Gallery% 5 Achievement% 5 Wizard Run 0 Options --------- Layout 1 ASCII 0 Keyboard 0 Movement Mouse Keybinds 0 Fullscreen 1 Font 32/SmallcapsGlow Map View 50x35 Zoom Use 0% Tactical HUD 0 Map Filters NONE Filters NONE Steam 1 RUN: 8375a6cf-4216-412f-a45b-dcbcbcbcbefb